[Event "Early-Titled-Tuesday-Blitz-December-26-2023"]
[Site "Chess.com"]
[Date "2023.12.26"]
[Round "10"]
[White "nitpicker"]
[Black "Felix-Rose"]
[Result "1-0"]
[WhiteElo "2295"]
[BlackElo "2238"]
[TimeControl "180+1"]
[EndTime "9:56:45 PST"]
[Termination "nitpicker won on time"]

1. d4 {[%clk 0:03:00.9]} 1... d5 {[%clk 0:02:59.4]} 2. c4 {[%clk 0:02:59.3]}
2... e6 {[%clk 0:02:59.8]} 3. Nf3 {[%clk 0:02:59.1]} 3... Nf6 {[%clk 0:03:00.2]}
4. g3 {[%clk 0:02:59.7]} 4... dxc4 {[%clk 0:03:00.3]} 5. Bg2 {[%clk 0:02:59.2]}
5... a6 {[%clk 0:03:01]} 6. O-O {[%clk 0:02:59.6]} 6... Nc6 {[%clk 0:03:01.7]}
7. e3 {[%clk 0:02:56.7]} 7... Bd7 {[%clk 0:03:01.5]} 8. Qe2 {[%clk 0:02:55.9]}
8... Bd6 {[%clk 0:03:00.1]} 9. Qxc4 {[%clk 0:02:53.2]} 9... O-O {[%clk
0:03:00.4]} 10. Rd1 {[%clk 0:02:46.8]} 10... Rb8 {[%clk 0:03:00.6]} 11. b3
{[%clk 0:02:45.4]} 11... Qe7 {[%clk 0:03:00]} 12. Bb2 {[%clk 0:02:42.6]} 12...
e5 {[%clk 0:02:46.1]} 13. d5 {[%clk 0:02:32.7]} 13... Na7 {[%clk 0:02:26.1]} 14.
Qc3 {[%clk 0:02:26.9]} 14... Rfe8 {[%clk 0:02:18.5]} 15. Nbd2 {[%clk 0:02:26.1]}
15... h6 {[%clk 0:02:16.1]} 16. e4 {[%clk 0:02:23.4]} 16... c5 {[%clk
0:02:03.4]} 17. dxc6 {[%clk 0:02:18.3]} 17... Nxc6 {[%clk 0:01:43.6]} 18. Nh4
{[%clk 0:02:10.9]} 18... Nd4 {[%clk 0:01:35.1]} 19. Bf1 {[%clk 0:01:32.1]} 19...
Rbc8 {[%clk 0:01:31]} 20. Qd3 {[%clk 0:00:54.5]} 20... g5 {[%clk 0:00:40.6]} 21.
Nf5 {[%clk 0:00:51]} 21... Bxf5 {[%clk 0:00:30.8]} 22. exf5 {[%clk 0:00:51.9]}
22... Bc5 {[%clk 0:00:29.4]} 23. Bg2 {[%clk 0:00:36.5]} 23... e4 {[%clk
0:00:20.2]} 24. Nxe4 {[%clk 0:00:23.8]} 24... Nxe4 {[%clk 0:00:18.4]} 25. Bxd4
{[%clk 0:00:23.3]} 25... Bxd4 {[%clk 0:00:17.1]} 26. Qxd4 {[%clk 0:00:21.6]}
26... Rcd8 {[%clk 0:00:16.7]} 27. Qe3 {[%clk 0:00:17.5]} 27... Rxd1+ {[%clk
0:00:09.4]} 28. Rxd1 {[%clk 0:00:17]} 28... Nf6 {[%clk 0:00:07.3]} 29. Qxe7
{[%clk 0:00:14.8]} 29... Rxe7 {[%clk 0:00:08.2]} 30. Kf1 {[%clk 0:00:13.3]}
30... Kg7 {[%clk 0:00:07.8]} 31. h3 {[%clk 0:00:13]} 31... h5 {[%clk 0:00:08]}
32. Bf3 {[%clk 0:00:08.9]} 32... g4 {[%clk 0:00:08]} 33. hxg4 {[%clk 0:00:08.4]}
33... hxg4 {[%clk 0:00:08.9]} 34. Bg2 {[%clk 0:00:08.9]} 34... Ne8 {[%clk
0:00:08.7]} 35. Rd4 {[%clk 0:00:08.3]} 35... Kf6 {[%clk 0:00:06.9]} 36. Rxg4
{[%clk 0:00:08]} 36... Kxf5 {[%clk 0:00:07.1]} 37. Rf4+ {[%clk 0:00:08.7]} 37...
Kg5 {[%clk 0:00:06.9]} 38. Rb4 {[%clk 0:00:09.2]} 38... Nd6 {[%clk 0:00:06.8]}
39. a4 {[%clk 0:00:08.8]} 39... Kf6 {[%clk 0:00:04.5]} 40. Rb6 {[%clk
0:00:08.9]} 40... Ke5 {[%clk 0:00:05.1]} 41. a5 {[%clk 0:00:07.4]} 41... Rc7
{[%clk 0:00:05.3]} 42. Bf3 {[%clk 0:00:07.3]} 42... f5 {[%clk 0:00:05.6]} 43.
Kg2 {[%clk 0:00:07.2]} 43... Rg7 {[%clk 0:00:03.1]} 44. Rb4 {[%clk 0:00:06.9]}
44... Ke6 {[%clk 0:00:01.5]} 45. Be2 {[%clk 0:00:06.8]} 45... Kd7 {[%clk
0:00:01.1]} 46. Bf3 {[%clk 0:00:06.4]} 46... Kc7 {[%clk 0:00:01.5]} 47. Rd4
{[%clk 0:00:05.7]} 47... Kd7 {[%clk 0:00:01.3]} 48. Rf4 {[%clk 0:00:06.3]} 48...
Kc7 {[%clk 0:00:01.8]} 49. Be2 {[%clk 0:00:06.5]} 49... Rg5 {[%clk 0:00:01.9]}
50. Bd3 {[%clk 0:00:06.6]} 1-0

[Event "Early-Titled-Tuesday-Blitz-December-26-2023"]
[Site "Chess.com"]
[Date "2023.12.26"]
[Round "10"]
[White "ftorodent"]
[Black "Korchmar_Vasiliy"]
[Result "0-1"]
[WhiteElo "2636"]
[BlackElo "2784"]
[TimeControl "180+1"]
[EndTime "9:56:48 PST"]
[Termination "Korchmar_Vasiliy won on time"]

1. d4 {[%clk 0:03:00.9]} 1... Nf6 {[%clk 0:02:59.9]} 2. c4 {[%clk 0:03:00.7]}
2... e6 {[%clk 0:03:00.2]} 3. Nf3 {[%clk 0:03:00.8]} 3... d5 {[%clk 0:03:00.6]}
4. Nc3 {[%clk 0:03:00.4]} 4... dxc4 {[%clk 0:03:00.5]} 5. e3 {[%clk 0:02:55.5]}
5... a6 {[%clk 0:03:00.2]} 6. Bxc4 {[%clk 0:02:55.2]} 6... b5 {[%clk 0:03:00.4]}
7. Be2 {[%clk 0:02:55.1]} 7... Bb7 {[%clk 0:03:00.9]} 8. O-O {[%clk 0:02:55.1]}
8... Nbd7 {[%clk 0:03:01.4]} 9. b3 {[%clk 0:02:51]} 9... c5 {[%clk 0:03:01.5]}
10. Bb2 {[%clk 0:02:51.2]} 10... Bd6 {[%clk 0:02:59.7]} 11. a4 {[%clk
0:02:43.3]} 11... b4 {[%clk 0:02:58.5]} 12. Nb1 {[%clk 0:02:43.9]} 12... cxd4
{[%clk 0:02:45.3]} 13. Nxd4 {[%clk 0:02:42.6]} 13... Ne4 {[%clk 0:02:36.8]} 14.
Nd2 {[%clk 0:02:22.4]} 14... Nxd2 {[%clk 0:02:28.4]} 15. Qxd2 {[%clk 0:02:21.8]}
15... Nc5 {[%clk 0:02:29]} 16. Qxb4 {[%clk 0:01:56.4]} 16... O-O {[%clk
0:02:14.1]} 17. Qe1 {[%clk 0:01:50.8]} 17... Qh4 {[%clk 0:01:48.5]} 18. g3
{[%clk 0:01:45]} 18... Qf6 {[%clk 0:01:47.7]} 19. b4 {[%clk 0:01:28.6]} 19...
Ne4 {[%clk 0:01:43.1]} 20. Rb1 {[%clk 0:01:24.9]} 20... Ng5 {[%clk 0:01:35.4]}
21. f3 {[%clk 0:01:23.8]} 21... e5 {[%clk 0:01:16.3]} 22. Nc2 {[%clk 0:01:14.6]}
22... Rac8 {[%clk 0:01:16.5]} 23. Rc1 {[%clk 0:01:04.3]} 23... Nxf3+ {[%clk
0:01:09.2]} 24. Bxf3 {[%clk 0:01:02.4]} 24... Bxf3 {[%clk 0:01:10.1]} 25. Qf2
{[%clk 0:01:02.6]} 25... Qg6 {[%clk 0:01:10.8]} 26. Qxf3 {[%clk 0:00:31.8]}
26... Rxc2 {[%clk 0:01:10.9]} 27. Rxc2 {[%clk 0:00:28.9]} 27... Qxc2 {[%clk
0:01:11.8]} 28. Qd5 {[%clk 0:00:28.8]} 28... Qxb2 {[%clk 0:00:37.4]} 29. Qxd6
{[%clk 0:00:28.2]} 29... Qc3 {[%clk 0:00:37.8]} 30. Qc5 {[%clk 0:00:24.8]} 30...
Qb2 {[%clk 0:00:32.1]} 31. Rf2 {[%clk 0:00:21.4]} 31... Qa1+ {[%clk 0:00:28.7]}
32. Kg2 {[%clk 0:00:21.5]} 32... Qxa4 {[%clk 0:00:29.1]} 33. h4 {[%clk
0:00:18.8]} 33... h6 {[%clk 0:00:28.4]} 34. Rd2 {[%clk 0:00:16.8]} 34... Rb8
{[%clk 0:00:24.4]} 35. Rd6 {[%clk 0:00:06.6]} 35... Qxb4 {[%clk 0:00:08.6]} 36.
Qxb4 {[%clk 0:00:06.5]} 36... Rxb4 {[%clk 0:00:09.5]} 37. Rxa6 {[%clk
0:00:06.7]} 37... e4 {[%clk 0:00:10.2]} 38. g4 {[%clk 0:00:05.7]} 38... Rb3
{[%clk 0:00:03.5]} 39. Kf2 {[%clk 0:00:05.3]} 39... g6 {[%clk 0:00:02.8]} 40.
Ra4 {[%clk 0:00:03.2]} 40... f5 {[%clk 0:00:02.8]} 41. gxf5 {[%clk 0:00:03.6]}
41... gxf5 {[%clk 0:00:03.7]} 42. Ra5 {[%clk 0:00:04]} 42... f4 {[%clk
0:00:03.4]} 43. exf4 {[%clk 0:00:03.5]} 43... Rf3+ {[%clk 0:00:04.3]} 44. Kg2
{[%clk 0:00:03.5]} 44... Rxf4 {[%clk 0:00:05.2]} 45. Kg3 {[%clk 0:00:04.1]}
45... Rf3+ {[%clk 0:00:02.9]} 46. Kg4 {[%clk 0:00:04.3]} 46... Rf1 {[%clk
0:00:02.1]} 47. Re5 {[%clk 0:00:04]} 47... Re1 {[%clk 0:00:02.2]} 48. Kh5 {[%clk
0:00:03.7]} 48... Kg7 {[%clk 0:00:02.7]} 49. Re6 {[%clk 0:00:04]} 49... e3
{[%clk 0:00:02.3]} 50. Re4 {[%clk 0:00:03]} 50... Re2 {[%clk 0:00:01.2]} 0-1

[Event "Early-Titled-Tuesday-Blitz-December-26-2023"]
[Site "Chess.com"]
[Date "2023.12.26"]
[Round "10"]
[White "aksuliini1"]
[Black "FoxOnTheRun97"]
[Result "1-0"]
[WhiteElo "2477"]
[BlackElo "2553"]
[TimeControl "180+1"]
[EndTime "9:56:52 PST"]
[Termination "aksuliini1 won by checkmate"]

1. d4 {[%clk 0:03:00.1]} 1... Nf6 {[%clk 0:03:00]} 2. c4 {[%clk 0:03:00.1]} 2...
e6 {[%clk 0:03:00.1]} 3. Nc3 {[%clk 0:03:00.1]} 3... Bb4 {[%clk 0:02:59.3]} 4.
e3 {[%clk 0:02:59.3]} 4... O-O {[%clk 0:02:59]} 5. Ne2 {[%clk 0:02:59.5]} 5...
d5 {[%clk 0:02:59.3]} 6. a3 {[%clk 0:02:59.3]} 6... Be7 {[%clk 0:02:59.2]} 7.
cxd5 {[%clk 0:02:57.3]} 7... exd5 {[%clk 0:02:59.2]} 8. Nf4 {[%clk 0:02:57.5]}
8... c6 {[%clk 0:02:59]} 9. Bd3 {[%clk 0:02:57.3]} 9... Nbd7 {[%clk 0:02:54.8]}
10. O-O {[%clk 0:02:55.3]} 10... Re8 {[%clk 0:02:55]} 11. b4 {[%clk 0:02:53.4]}
11... a6 {[%clk 0:02:54.1]} 12. f3 {[%clk 0:02:51.3]} 12... Nf8 {[%clk
0:02:50.5]} 13. Bc2 {[%clk 0:02:41.1]} 13... Ng6 {[%clk 0:02:46.9]} 14. Nxg6
{[%clk 0:02:33.8]} 14... hxg6 {[%clk 0:02:47.8]} 15. e4 {[%clk 0:02:34.5]} 15...
dxe4 {[%clk 0:02:46.6]} 16. fxe4 {[%clk 0:02:35.4]} 16... a5 {[%clk 0:02:44.6]}
17. Rb1 {[%clk 0:02:23.5]} 17... Bg4 {[%clk 0:02:35.5]} 18. Qd3 {[%clk
0:02:19.1]} 18... axb4 {[%clk 0:02:28.2]} 19. axb4 {[%clk 0:02:20]} 19... Be6
{[%clk 0:02:13.7]} 20. b5 {[%clk 0:02:03.3]} 20... Qd7 {[%clk 0:01:56.7]} 21. h3
{[%clk 0:01:50.3]} 21... Red8 {[%clk 0:01:51.6]} 22. Be3 {[%clk 0:01:49.1]}
22... Ra3 {[%clk 0:01:46.6]} 23. Ra1 {[%clk 0:01:36.4]} 23... Rxa1 {[%clk
0:01:37.5]} 24. Rxa1 {[%clk 0:01:37.3]} 24... cxb5 {[%clk 0:01:18]} 25. Qxb5
{[%clk 0:01:20.1]} 25... Bxh3 {[%clk 0:01:10.9]} 26. gxh3 {[%clk 0:01:05.5]}
26... Qxh3 {[%clk 0:01:10.5]} 27. Qe2 {[%clk 0:01:06]} 27... Ng4 {[%clk
0:01:05.2]} 28. Bf4 {[%clk 0:00:38.1]} 28... Qxc3 {[%clk 0:01:03.2]} 29. Rd1
{[%clk 0:00:33.3]} 29... Nf6 {[%clk 0:00:40.6]} 30. d5 {[%clk 0:00:33.1]} 30...
Bc5+ {[%clk 0:00:39]} 31. Kg2 {[%clk 0:00:31.3]} 31... Nh5 {[%clk 0:00:37.4]}
32. Bh2 {[%clk 0:00:31.1]} 32... b5 {[%clk 0:00:32.8]} 33. Rd3 {[%clk
0:00:29.8]} 33... Qf6 {[%clk 0:00:29.8]} 34. Rf3 {[%clk 0:00:27.5]} 34... Qg5+
{[%clk 0:00:29.4]} 35. Kh1 {[%clk 0:00:26]} 35... b4 {[%clk 0:00:28.9]} 36. Bb3
{[%clk 0:00:25.7]} 36... Qc1+ {[%clk 0:00:27.3]} 37. Kg2 {[%clk 0:00:25.4]}
37... Bd6 {[%clk 0:00:19.6]} 38. e5 {[%clk 0:00:23.4]} 38... Bb8 {[%clk
0:00:17.5]} 39. d6 {[%clk 0:00:22.1]} 39... Qc6 {[%clk 0:00:16]} 40. Bxf7+
{[%clk 0:00:20.9]} 40... Kh7 {[%clk 0:00:15.7]} 41. Qd3 {[%clk 0:00:20.1]} 41...
Rxd6 {[%clk 0:00:05.1]} 42. exd6 {[%clk 0:00:18.9]} 42... Qxf3+ {[%clk
0:00:01.7]} 43. Qxf3 {[%clk 0:00:18.3]} 43... Nf6 {[%clk 0:00:01.8]} 44. Qh3+
{[%clk 0:00:16.3]} 44... Nh5 {[%clk 0:00:01.6]} 45. d7 {[%clk 0:00:16.5]} 45...
Bc7 {[%clk 0:00:01.5]} 46. d8=Q {[%clk 0:00:15]} 46... Bxd8 {[%clk 0:00:02.4]}
47. Bxg6+ {[%clk 0:00:15.6]} 47... Kxg6 {[%clk 0:00:02.3]} 48. Qd3+ {[%clk
0:00:16.2]} 48... Kh6 {[%clk 0:00:02.4]} 49. Qxd8 {[%clk 0:00:17.1]} 49... g6
{[%clk 0:00:02.5]} 50. Qh8+ {[%clk 0:00:16.3]} 50... Kg5 {[%clk 0:00:03]} 51.
Qb8 {[%clk 0:00:16.5]} 51... b3 {[%clk 0:00:02.8]} 52. Qxb3 {[%clk 0:00:16.7]}
52... Kf5 {[%clk 0:00:03.4]} 53. Qd3+ {[%clk 0:00:16.7]} 53... Kg5 {[%clk
0:00:03.8]} 54. Qe3+ {[%clk 0:00:16.8]} 54... Kf5 {[%clk 0:00:04.2]} 55. Kf3
{[%clk 0:00:17.1]} 55... Kf6 {[%clk 0:00:04.3]} 56. Qe5+ {[%clk 0:00:17]} 56...
Kf7 {[%clk 0:00:04.2]} 57. Bf4 {[%clk 0:00:17]} 57... Ng7 {[%clk 0:00:03.6]} 58.
Bg5 {[%clk 0:00:16.9]} 58... Nf5 {[%clk 0:00:04.5]} 59. Qf6+ {[%clk 0:00:17]}
59... Kg8 {[%clk 0:00:03.7]} 60. Qxg6+ {[%clk 0:00:17.9]} 60... Kh8 {[%clk
0:00:03.8]} 61. Bf6+ {[%clk 0:00:17.9]} 61... Ng7 {[%clk 0:00:03.4]} 62. Qxg7#
{[%clk 0:00:18.8]} 1-0

[Event "Early-Titled-Tuesday-Blitz-December-26-2023"]
[Site "Chess.com"]
[Date "2023.12.26"]
[Round "10"]
[White "Herzog2012"]
[Black "Alexei_Gubajdullin"]
[Result "1-0"]
[WhiteElo "2558"]
[BlackElo "2634"]
[TimeControl "180+1"]
[EndTime "9:56:56 PST"]
[Termination "Herzog2012 won by checkmate"]

1. e4 {[%clk 0:03:00.9]} 1... g6 {[%clk 0:02:59.1]} 2. d4 {[%clk 0:02:59.9]}
2... Bg7 {[%clk 0:02:59.1]} 3. Nc3 {[%clk 0:03:00.5]} 3... d6 {[%clk 0:02:59.2]}
4. f4 {[%clk 0:03:00.1]} 4... a6 {[%clk 0:02:59.2]} 5. Nf3 {[%clk 0:02:56.2]}
5... Nd7 {[%clk 0:02:57.7]} 6. Bd3 {[%clk 0:02:55]} 6... b5 {[%clk 0:02:57.5]}
7. O-O {[%clk 0:02:52.9]} 7... c5 {[%clk 0:02:56.4]} 8. dxc5 {[%clk 0:02:22]}
8... Nxc5 {[%clk 0:02:55.9]} 9. Be3 {[%clk 0:02:19.8]} 9... Nf6 {[%clk
0:02:54.3]} 10. e5 {[%clk 0:02:15.5]} 10... Ng4 {[%clk 0:02:54]} 11. Bxc5 {[%clk
0:02:15.2]} 11... dxc5 {[%clk 0:02:53.8]} 12. Be4 {[%clk 0:02:15.8]} 12... Ra7
{[%clk 0:02:46.6]} 13. Qe2 {[%clk 0:01:57.8]} 13... Qb6 {[%clk 0:02:44.5]} 14.
Nd5 {[%clk 0:01:49.9]} 14... Qb8 {[%clk 0:02:43.8]} 15. h3 {[%clk 0:01:44.2]}
15... Nh6 {[%clk 0:02:43.5]} 16. Qf2 {[%clk 0:01:32.8]} 16... c4 {[%clk
0:02:27.8]} 17. Qc5 {[%clk 0:01:23.4]} 17... Bf5 {[%clk 0:02:15.2]} 18. Bxf5
{[%clk 0:01:02.5]} 18... Nxf5 {[%clk 0:02:14.6]} 19. g4 {[%clk 0:01:00.4]} 19...
Ng3 {[%clk 0:02:10.4]} 20. Rfe1 {[%clk 0:00:52.8]} 20... h5 {[%clk 0:02:09]} 21.
Kg2 {[%clk 0:00:50.3]} 21... h4 {[%clk 0:02:03.2]} 22. e6 {[%clk 0:00:41.1]}
22... O-O {[%clk 0:01:56.7]} 23. Nxe7+ {[%clk 0:00:35.2]} 23... Rxe7 {[%clk
0:01:53.1]} 24. Qxe7 {[%clk 0:00:35]} 24... Qxf4 {[%clk 0:01:53]} 25. Qg5 {[%clk
0:00:23.1]} 25... fxe6 {[%clk 0:01:41.1]} 26. Qxf4 {[%clk 0:00:18.8]} 26... Rxf4
{[%clk 0:01:40.7]} 27. Nxh4 {[%clk 0:00:10.4]} 27... Ne4 {[%clk 0:01:39.5]} 28.
Nxg6 {[%clk 0:00:06.8]} 28... Rf2+ {[%clk 0:01:37.7]} 29. Kg1 {[%clk 0:00:06.1]}
29... Rf6 {[%clk 0:01:35.1]} 30. Rxe4 {[%clk 0:00:04.3]} 30... Rxg6 {[%clk
0:01:35.1]} 31. c3 {[%clk 0:00:04.9]} 31... Kf7 {[%clk 0:01:29.5]} 32. a4 {[%clk
0:00:04.8]} 32... b4 {[%clk 0:01:28.7]} 33. Rxc4 {[%clk 0:00:03.6]} 33... b3
{[%clk 0:01:25.5]} 34. Rb4 {[%clk 0:00:02.8]} 34... Rg5 {[%clk 0:01:22.6]} 35.
Rxb3 {[%clk 0:00:03.2]} 35... Rd5 {[%clk 0:01:23.1]} 36. Rb7+ {[%clk 0:00:03.5]}
36... Kg6 {[%clk 0:01:22.3]} 37. Rf1 {[%clk 0:00:03.3]} 37... Rd2 {[%clk
0:01:21]} 38. Rf2 {[%clk 0:00:03.7]} 38... Rd1+ {[%clk 0:01:20.7]} 39. Kg2
{[%clk 0:00:03.8]} 39... Bf6 {[%clk 0:01:17.3]} 40. Rb6 {[%clk 0:00:03.4]} 40...
Re1 {[%clk 0:01:16.7]} 41. Rf1 {[%clk 0:00:02.6]} 41... Re2+ {[%clk 0:01:16.1]}
42. Rf2 {[%clk 0:00:03.1]} 42... Re1 {[%clk 0:01:16.2]} 43. Rxa6 {[%clk
0:00:02.9]} 43... Bh4 {[%clk 0:01:16.2]} 44. Rf1 {[%clk 0:00:03]} 44... Re2+
{[%clk 0:01:15.8]} 45. Kf3 {[%clk 0:00:03.4]} 45... Re5 {[%clk 0:01:14.3]} 46.
Kf4 {[%clk 0:00:02.4]} 46... Re2 {[%clk 0:01:13.9]} 47. Kf3 {[%clk 0:00:03]}
47... Re5 {[%clk 0:01:13.6]} 48. Rd1 {[%clk 0:00:02.9]} 48... Kf6 {[%clk
0:01:13.3]} 49. b4 {[%clk 0:00:02.6]} 49... Bg5 {[%clk 0:01:12.6]} 50. b5 {[%clk
0:00:02]} 50... Re3+ {[%clk 0:01:12.4]} 51. Kf2 {[%clk 0:00:02.7]} 51... Rxc3
{[%clk 0:01:12.4]} 52. b6 {[%clk 0:00:03.2]} 52... Rb3 {[%clk 0:01:12.6]} 53. a5
{[%clk 0:00:02.6]} 53... Be3+ {[%clk 0:01:11.1]} 54. Ke2 {[%clk 0:00:03.2]}
54... Ke5 {[%clk 0:01:08.7]} 55. Rf1 {[%clk 0:00:04.1]} 55... Bc5 {[%clk
0:01:08.1]} 56. Rf3 {[%clk 0:00:03.7]} 56... Rb2+ {[%clk 0:01:07.9]} 57. Kd3
{[%clk 0:00:04]} 57... Rb3+ {[%clk 0:01:07.7]} 58. Kc4 {[%clk 0:00:04.3]} 58...
Rxf3 {[%clk 0:01:05.8]} 59. Kxc5 {[%clk 0:00:04.8]} 59... Rc3+ {[%clk 0:01:05]}
60. Kb5 {[%clk 0:00:04.9]} 60... Kd5 {[%clk 0:01:04.3]} 61. Ra7 {[%clk
0:00:04.6]} 61... e5 {[%clk 0:01:03.9]} 62. Ka6 {[%clk 0:00:03.9]} 62... e4
{[%clk 0:01:03.3]} 63. Re7 {[%clk 0:00:04.3]} 63... e3 {[%clk 0:00:57.5]} 64. b7
{[%clk 0:00:04.7]} 64... Rc6+ {[%clk 0:00:57.6]} 65. Ka7 {[%clk 0:00:04.6]}
65... Re6 {[%clk 0:00:57.6]} 66. Rxe6 {[%clk 0:00:04.8]} 66... Kxe6 {[%clk
0:00:56.9]} 67. b8=Q {[%clk 0:00:05.7]} 67... e2 {[%clk 0:00:57.1]} 68. Qe8+
{[%clk 0:00:05.7]} 68... Kf6 {[%clk 0:00:56.9]} 69. Qxe2 {[%clk 0:00:06.2]}
69... Kg5 {[%clk 0:00:57]} 70. Qf2 {[%clk 0:00:06.8]} 70... Kg6 {[%clk 0:00:57]}
71. Qf5+ {[%clk 0:00:07.5]} 71... Kg7 {[%clk 0:00:57]} 72. g5 {[%clk 0:00:08.1]}
72... Kg8 {[%clk 0:00:57]} 73. Qd7 {[%clk 0:00:08.3]} 73... Kf8 {[%clk 0:00:57]}
74. g6 {[%clk 0:00:09.2]} 74... Kg8 {[%clk 0:00:57.2]} 75. Qf7+ {[%clk
0:00:10.1]} 75... Kh8 {[%clk 0:00:57.3]} 76. Qh7# {[%clk 0:00:11]} 1-0

[Event "Early-Titled-Tuesday-Blitz-December-26-2023"]
[Site "Chess.com"]
[Date "2023.12.26"]
[Round "10"]
[White "HajiyevKanan"]
[Black "Witik"]
[Result "0-1"]
[WhiteElo "2611"]
[BlackElo "2735"]
[TimeControl "180+1"]
[EndTime "9:57:02 PST"]
[Termination "Witik won on time"]

1. d4 {[%clk 0:03:00.9]} 1... Nf6 {[%clk 0:02:58.9]} 2. Nf3 {[%clk 0:03:01.5]}
2... e6 {[%clk 0:02:57]} 3. c4 {[%clk 0:03:02]} 3... b6 {[%clk 0:02:56.4]} 4.
Nc3 {[%clk 0:03:00.8]} 4... Bb7 {[%clk 0:02:55.7]} 5. g3 {[%clk 0:02:53.4]} 5...
Bb4 {[%clk 0:02:36.6]} 6. Bd2 {[%clk 0:02:51]} 6... O-O {[%clk 0:02:27.1]} 7.
Bg2 {[%clk 0:02:51.4]} 7... d6 {[%clk 0:02:27]} 8. O-O {[%clk 0:02:50.3]} 8...
Nbd7 {[%clk 0:02:23.4]} 9. Qc2 {[%clk 0:02:50.5]} 9... Bxc3 {[%clk 0:02:22.7]}
10. Bxc3 {[%clk 0:02:48.1]} 10... Be4 {[%clk 0:02:22.8]} 11. Qd2 {[%clk
0:02:46.4]} 11... c6 {[%clk 0:02:15.6]} 12. Bb4 {[%clk 0:02:41]} 12... Qc7
{[%clk 0:02:06.4]} 13. Rfc1 {[%clk 0:02:34]} 13... h6 {[%clk 0:02:03.3]} 14. a4
{[%clk 0:02:30.1]} 14... Rfd8 {[%clk 0:01:58.4]} 15. Ba3 {[%clk 0:02:23.3]}
15... a5 {[%clk 0:01:53.1]} 16. b4 {[%clk 0:02:22.8]} 16... axb4 {[%clk
0:01:52.6]} 17. Bxb4 {[%clk 0:02:23.3]} 17... c5 {[%clk 0:01:52.9]} 18. dxc5
{[%clk 0:02:18.9]} 18... Nxc5 {[%clk 0:01:46.9]} 19. Bxc5 {[%clk 0:01:45.6]}
19... dxc5 {[%clk 0:01:36.4]} 20. Qb2 {[%clk 0:01:42.4]} 20... Ra6 {[%clk
0:01:29.6]} 21. Ne5 {[%clk 0:01:22.4]} 21... Bxg2 {[%clk 0:01:26.7]} 22. Kxg2
{[%clk 0:01:23.3]} 22... Rda8 {[%clk 0:01:11.9]} 23. Nd3 {[%clk 0:00:56.7]}
23... Rxa4 {[%clk 0:01:10.1]} 24. Rxa4 {[%clk 0:00:56.1]} 24... Rxa4 {[%clk
0:01:11]} 25. Rb1 {[%clk 0:00:57]} 25... Rxc4 {[%clk 0:00:32.9]} 26. Qxb6 {[%clk
0:00:56.9]} 26... Qxb6 {[%clk 0:00:33.1]} 27. Rxb6 {[%clk 0:00:57.6]} 27... Rc2
{[%clk 0:00:33.8]} 28. Rb8+ {[%clk 0:00:54.9]} 28... Kh7 {[%clk 0:00:33.9]} 29.
Kf3 {[%clk 0:00:44.6]} 29... Nd5 {[%clk 0:00:20.6]} 30. Rc8 {[%clk 0:00:39.9]}
30... c4 {[%clk 0:00:18.6]} 31. Ne5 {[%clk 0:00:39.8]} 31... c3 {[%clk
0:00:12.8]} 32. Nxf7 {[%clk 0:00:39.8]} 32... Rd2 {[%clk 0:00:07.5]} 33. e4
{[%clk 0:00:37.1]} 33... Rd3+ {[%clk 0:00:06.6]} 34. Ke2 {[%clk 0:00:35.6]}
34... Rd2+ {[%clk 0:00:07]} 35. Kf3 {[%clk 0:00:35.3]} 35... Rd3+ {[%clk
0:00:07.1]} 36. Ke2 {[%clk 0:00:34.7]} 36... Rd2+ {[%clk 0:00:07.5]} 37. Ke1
{[%clk 0:00:35.3]} 37... Nf6 {[%clk 0:00:04.9]} 38. Rxc3 {[%clk 0:00:26.4]}
38... Nxe4 {[%clk 0:00:05.4]} 39. Re3 {[%clk 0:00:25.5]} 39... Rxf2 {[%clk
0:00:05.6]} 40. Rxe4 {[%clk 0:00:22.7]} 40... Rxf7 {[%clk 0:00:05.6]} 41. Rxe6
{[%clk 0:00:23.3]} 41... g5 {[%clk 0:00:05.2]} 42. Ke2 {[%clk 0:00:21.4]} 42...
Kg7 {[%clk 0:00:05.6]} 43. Ke3 {[%clk 0:00:21.2]} 43... Rf1 {[%clk 0:00:04.3]}
44. Ke2 {[%clk 0:00:20.8]} 44... Rf7 {[%clk 0:00:04.1]} 45. h4 {[%clk
0:00:19.7]} 45... gxh4 {[%clk 0:00:03.9]} 46. gxh4 {[%clk 0:00:20.6]} 46... Rf4
{[%clk 0:00:03.5]} 47. h5 {[%clk 0:00:17]} 47... Rf5 {[%clk 0:00:03.9]} 48. Ke3
{[%clk 0:00:11.7]} 48... Rxh5 {[%clk 0:00:04]} 49. Kf4 {[%clk 0:00:12.1]} 49...
Rg5 {[%clk 0:00:04.7]} 50. Re7+ {[%clk 0:00:11.7]} 50... Kg6 {[%clk 0:00:05.2]}
51. Re6+ {[%clk 0:00:12.5]} 51... Kh5 {[%clk 0:00:05.1]} 52. Re8 {[%clk
0:00:13.1]} 52... Rg4+ {[%clk 0:00:05.4]} 53. Kf3 {[%clk 0:00:13.1]} 53... Kh4
{[%clk 0:00:06]} 54. Re1 {[%clk 0:00:13]} 54... h5 {[%clk 0:00:06]} 55. Rh1+
{[%clk 0:00:13.7]} 55... Kg5 {[%clk 0:00:06.7]} 56. Rh2 {[%clk 0:00:13.6]} 56...
Ra4 {[%clk 0:00:06.7]} 57. Rg2+ {[%clk 0:00:13.5]} 57... Kf5 {[%clk 0:00:06.3]}
58. Rh2 {[%clk 0:00:11.3]} 58... Ra3+ {[%clk 0:00:06.8]} 59. Kg2 {[%clk
0:00:11.6]} 59... Kg4 {[%clk 0:00:07.3]} 60. Rh1 {[%clk 0:00:05.4]} 60... Ra2+
{[%clk 0:00:06.2]} 61. Kg1 {[%clk 0:00:05.2]} 61... Kg3 {[%clk 0:00:06.8]} 0-1